fUST/lending_fUST_20240411
["ID","MTS","AMOUNT","RATE_DAILY","PERIOD"]
[322097505,1712765231182,-389.75630827,0.00025678,2]
[322097506,1712765231212,-173.476192,0.00026591,2]
[322097507,1712765231237,-300.0,0.00026801,2]
[322097508,1712765231267,-24900.0,0.00026802,2]
[322097509,1712765231295,-769.37401155,0.00027397,10]
[322097510,1712765231328,-357.135361,0.00027397,2]
[322097511,1712765231356,-166.666666,0.00027397,2]
[322097512,1712765231386,-350.376558,0.00027397,2]
[322097513,1712765231411,-19511.51418901,0.000275,2]
[322097514,1712765231442,-150.87929656,0.00027994,30]
[322097515,1712765231472,-166.666666,0.00028038,2]
[322097516,1712765231504,-150.87929656,0.00028565,7]
[322097517,1712765231530,-166.666666,0.00028679,2]
[322097518,1712765231556,-150.87929656,0.00029148,4]
[322097519,1712765231584,-166.666666,0.00029321,2]
[322097520,1712765231611,-420.0,0.00029482,2]
[322097521,1712765231636,-150.87929656,0.00029743,2]
[322097522,1712765231665,-166.666666,0.00029962,2]
[322097523,1712765231691,-500.0,0.00029999,2]
[322097524,1712765231716,-478.05115889,0.00029999,2]
[322097525,1712765231741,-500.0,0.00029999,2]
[322097526,1712765231764,-228.93657157,0.00029999,2]
[322097527,1712765231788,-500.0,0.00029999,2]
[322097528,1712765231814,-500.0,0.00029999,2]
[322097529,1712765231841,-528.46773582,0.00029999,2]
[322097530,1712765231867,-23184.99593957,0.0003,5]
[322097531,1712765231893,-378.32756566,0.0003,10]
[322097532,1712765231920,-297.29317484,0.0003,120]
[322097533,1712765231943,-43527.38900629,0.0003,7]
[322097534,1712765231971,-166.666666,0.00030603,2]
[322097535,1712765231995,-150.0,0.00030774,2]
[322097536,1712765232020,-2695.77130046,0.00031496,30]
[322097537,1712765232044,-150.0,0.000315,2]
[322097538,1712765232068,-539.53,0.00032,2]
[322097539,1712765232095,-153.0,0.00032179,2]
[322097540,1712765232119,-587.0,0.0003243,2]
[322097541,1712765232267,-586.0,0.000327,2]
[322097542,1712765232293,-1211.2733208,0.0003271,2]
[322097543,1712765232313,-1211.2733208,0.0003271,2]
[322097544,1712765232333,-386.89814617,0.00032874,4]
[322097545,1712765232353,-868.28109873,0.00032874,4]
[322097546,1712765232372,-295.8912181,0.00032874,4]
[322097547,1712765232392,-1013.33930327,0.00032874,4]
[322097548,1712765232412,-162.95786103,0.00032874,4]
[322097549,1712765232433,-268.731,0.00032874,4]
[322097550,1712765232454,-435.85041536,0.00032874,4]
[322097551,1712765232476,-974.70752692,0.00032874,4]
[322097552,1712765232497,-470.13868753,0.00032874,4]
[322097553,1712765232517,-685.56286229,0.00032874,4]
[322097554,1712765232536,-14325.78144539,0.00032874,4]
[322097555,1712765232556,-422.92630104,0.00032874,4]
[322097556,1712765232577,-180.98113052,0.00032874,4]
[322097557,1712765232596,-1930.22588294,0.00032874,4]
[322097558,1712765232616,-1616.75713304,0.00032874,4]
[322097559,1712765232639,-1057.27329301,0.00032874,2]
[322097560,1712765232659,-151.0,0.00032874,2]
[322097561,1712765232683,-151.0,0.00032874,2]
[322097562,1712765232703,-249.436604,0.00032874,2]
[322097563,1712765232730,-72098.44816664,0.00032875,2]
[322097564,1712765232752,-48758.75960257,0.00032875,4]
[322097565,1712765232775,-151.0,0.00032875,2]
[322097566,1712765232798,-151.674312,0.00032875,2]
[322097567,1712765232819,-151.0,0.00032875,2]
[322097568,1712765232839,-151.0,0.00032875,2]
[322097569,1712765232862,-151.0,0.00032875,2]
[322097570,1712765232886,-151.0,0.00032875,2]
[322097571,1712765232906,-151.0,0.00032875,2]
[322097572,1712765232929,-151.0,0.00032875,2]
[322097573,1712765232949,-160.0,0.00032875,10]
[322097574,1712765232970,-2016.046757,0.00032875,2]
[322097575,1712765232989,-2016.046757,0.00032875,2]
[322097576,1712765233012,-2016.046757,0.00032875,2]
[322097577,1712765233034,-2016.046757,0.00032875,2]
[322097578,1712765233055,-151.0,0.00032875,2]
[322097579,1712765233076,-151.0,0.00032875,2]
[322097580,1712765233099,-151.0,0.00032875,2]
[322097581,1712765233126,-151.0,0.00032875,2]
[322097582,1712765233150,-445.95096,0.00032876,2]
[322097583,1712765233175,-500.0,0.00032876,5]
[322097584,1712765233196,-500.0,0.00032876,5]
[322097585,1712765233219,-500.0,0.00032876,5]
[322097586,1712765233242,-500.0,0.00032876,5]
[322097587,1712765233262,-154.92253873,0.00032876,5]
[322097588,1712765233283,-428.10313705,0.00032876,5]
[322097589,1712765233305,-500.0,0.00032876,5]
[322097590,1712765233325,-503.02102843,0.00032876,5]
[322097591,1712765233345,-292.9000006,0.00032876,5]
[322097592,1712765233367,-500.0,0.00032876,5]
[322097593,1712765233388,-500.0,0.00032876,5]
[322097594,1712765233409,-500.0,0.00032876,5]
[322097595,1712765233430,-500.0,0.00032876,5]
[322097596,1712765233452,-500.0,0.00032876,5]
[322097597,1712765233474,-1318.54,0.00032876,5]
[322097598,1712765233496,-500.0,0.00032876,5]
[322097599,1712765233517,-500.0,0.00032876,5]
[322097600,1712765233538,-500.0,0.00032876,5]
[322097601,1712765233561,-500.0,0.00032876,5]
[322097602,1712765233582,-500.0,0.00032876,5]
[322097603,1712765233603,-500.0,0.00032876,5]
[322097604,1712765233623,-500.0,0.00032876,5]
[322097605,1712765233644,-506.77631211,0.00032876,5]
[322097606,1712765233664,-500.0,0.00032876,5]
[322097607,1712765233685,-500.0,0.00032876,5]
[322097608,1712765233705,-500.0,0.00032876,5]
[322097609,1712765233728,-484.02321482,0.00032876,5]
[322097610,1712765233753,-500.0,0.00032876,5]
[322097611,1712765233774,-500.0,0.00032876,5]
[322097612,1712765233795,-504.70509203,0.00032876,5]
[322097613,1712765233816,-500.0,0.00032876,5]
[322097614,1712765233836,-500.0,0.00032876,5]
[322097615,1712765233857,-500.0,0.00032876,5]
[322097616,1712765233878,-500.0,0.00032876,5]
[322097617,1712765233898,-243.95948227,0.00032876,5]
[322097618,1712765233919,-500.0,0.00032876,5]
[322097619,1712765233940,-500.0,0.00032876,5]
[322097620,1712765233960,-638.5,0.00032876,5]
[322097621,1712765233979,-500.0,0.00032876,5]
[322097622,1712765234000,-500.0,0.00032876,5]
[322097623,1712765234021,-500.0,0.00032876,5]
[322097624,1712765234041,-637.09408538,0.00032876,5]
[322097625,1712765234061,-500.0,0.00032876,5]
[322097626,1712765234083,-500.0,0.00032876,5]
[322097627,1712765234105,-500.0,0.00032876,5]
[322097628,1712765234132,-500.0,0.00032876,5]
[322097629,1712765234157,-500.0,0.00032876,5]
[322097630,1712765234178,-2188.8,0.00032876,5]
[322097631,1712765234199,-500.0,0.00032876,5]
[322097632,1712765234222,-552.1,0.00032876,5]
[322097633,1712765234243,-500.0,0.00032876,5]
[322097634,1712765234263,-500.0,0.00032876,5]
[322097635,1712765234283,-500.0,0.00032876,5]
[322097636,1712765234306,-151.0,0.00032876,2]
[322097637,1712765234326,-151.0,0.00032876,2]
[322097638,1712765234347,-199.109944,0.00032876,2]
[322097639,1712765234367,-500.0,0.00032876,5]
[322097640,1712765234387,-500.37597184,0.00032876,5]
[322097641,1712765234408,-500.0,0.00032876,5]
[322097642,1712765234430,-500.0,0.00032876,5]
[322097643,1712765234451,-501.01806855,0.00032876,5]
[322097644,1712765234470,-500.0,0.00032876,5]
[322097645,1712765234491,-500.0,0.00032876,5]
[322097646,1712765234512,-502.35,0.00032876,5]
[322097647,1712765234603,-501.59012115,0.00032876,5]
[322097648,1712765234641,-497.82549668,0.00032876,5]
[322097649,1712765234669,-500.0,0.00032876,5]
[322097650,1712765234692,-500.0,0.00032876,5]
[322097651,1712765234713,-524.97,0.00032876,5]
[322097652,1712765234735,-151.0,0.00032876,2]
[322097653,1712765234755,-500.0,0.00032876,5]
[322097654,1712765234776,-151.0,0.00032876,2]
[322097655,1712765234796,-500.0,0.00032876,5]
[322097656,1712765234819,-500.0,0.00032876,5]
[322097657,1712765234841,-500.0,0.00032876,5]
[322097658,1712765234861,-500.0,0.00032876,5]
[322097659,1712765234883,-151.0,0.00032876,2]
[322097660,1712765234904,-165.90236,0.00032876,2]
[322097661,1712765234926,-507.54911695,0.00032876,5]
[322097662,1712765234946,-500.0,0.00032876,5]
[322097663,1712765234966,-502.0539563,0.00032876,5]
[322097664,1712765234987,-1393.86,0.00032876,5]
[322097665,1712765235007,-501.24731281,0.00032876,5]
[322097666,1712765235027,-500.0,0.00032876,5]
[322097667,1712765235048,-500.28658205,0.00032876,5]
[322097668,1712765235067,-301.28476161,0.00032876,5]
[322097669,1712765235087,-500.0,0.00032876,5]
[322097670,1712765235108,-500.0,0.00032876,5]
[322097671,1712765235130,-554.03159042,0.00032876,5]
[322097672,1712765235150,-185.816553,0.00032876,2]
[322097673,1712765235172,-500.0,0.00032876,14]
[322097674,1712765235191,-500.0,0.00032876,5]
[322097675,1712765235212,-591.12399904,0.00032876,5]
[322097676,1712765235233,-500.0,0.00032876,5]
[322097677,1712765235258,-500.0,0.00032876,5]
[322097678,1712765235278,-230.05888057,0.00032876,5]
[322097679,1712765235300,-500.0,0.00032876,5]
[322097680,1712765235321,-500.0,0.00032876,5]
[322097681,1712765235341,-618.62,0.00032876,5]
[322097682,1712765235361,-500.0,0.00032876,5]
[322097683,1712765235380,-500.0,0.00032876,5]
[322097684,1712765235400,-500.0,0.00032876,5]
[322097685,1712765235421,-500.0,0.00032876,5]
[322097686,1712765235443,-537.91,0.00032876,5]
[322097687,1712765235463,-500.0,0.00032876,5]
[322097688,1712765235485,-500.0,0.00032876,5]
[322097689,1712765235512,-534.91,0.00032876,5]
[322097690,1712765235541,-502.06123262,0.00032876,5]
[322097691,1712765235565,-500.0,0.00032876,5]
[322097692,1712765235588,-502.48175324,0.00032876,5]
[322097693,1712765235611,-500.0,0.00032876,5]
[322097694,1712765235633,-21360.54,0.00032876,5]
[322097695,1712765235654,-500.0,0.00032876,5]
[322097696,1712765235675,-500.0,0.00032876,5]
[322097697,1712765235695,-500.0,0.00032876,5]
[322097698,1712765235716,-500.0,0.00032876,5]
[322097699,1712765235737,-500.0,0.00032876,5]
[322097700,1712765235757,-151.0,0.00032876,2]
[322097701,1712765235777,-151.0,0.00032876,2]
[322097702,1712765235798,-500.0,0.00032876,5]
[322097703,1712765235818,-151.0,0.00032876,2]
[322097704,1712765235839,-1056.06,0.00032876,5]
[322097705,1712765235859,-500.0,0.00032876,5]
[322097706,1712765235879,-4658.3,0.00032876,5]
[322097707,1712765235899,-577.81,0.00032876,5]
[322097708,1712765235920,-486.47336145,0.00032876,5]
[322097709,1712765235940,-500.0,0.00032876,5]
[322097710,1712765235960,-500.0,0.00032876,5]
[322097711,1712765235980,-500.0,0.00032876,5]
[322097712,1712765236001,-500.0,0.00032876,5]
[322097713,1712765236021,-500.0,0.00032876,5]
[322097714,1712765236041,-500.0,0.00032876,5]
[322097715,1712765236063,-500.0,0.00032876,5]
[322097716,1712765236084,-500.0,0.00032876,5]
[322097717,1712765236104,-748.68,0.00032876,5]
[322097718,1712765236127,-500.0,0.00032876,5]
[322097719,1712765236147,-663.36,0.00032876,5]
[322097720,1712765236171,-500.0,0.00032876,5]
[322097721,1712765236191,-967.8,0.00032876,5]
[322097722,1712765236211,-2016.046757,0.00032876,2]
[322097723,1712765236232,-2016.046757,0.00032876,2]
[322097724,1712765236253,-2016.046757,0.00032876,2]
[322097725,1712765236273,-575.53,0.00032876,5]
[322097726,1712765236300,-4116.47,0.00032876,5]
[322097727,1712765236319,-2016.046757,0.00032876,2]
[322097728,1712765236339,-2016.046757,0.00032876,2]
[322097729,1712765236359,-2016.046757,0.00032876,2]
[322097730,1712765236379,-2016.046757,0.00032876,2]
[322097731,1712765236399,-2016.046757,0.00032876,2]
[322097732,1712765236421,-2016.046757,0.00032876,2]
[322097733,1712765236442,-2016.046757,0.00032876,2]
[322097734,1712765236462,-2016.046757,0.00032876,2]
[322097735,1712765236482,-2016.046757,0.00032876,2]
[322097736,1712765236503,-2016.046757,0.00032876,2]
[322097737,1712765236524,-2016.046757,0.00032876,2]
[322097738,1712765236544,-1147.67,0.00032876,5]
[322097739,1712765236565,-2016.046757,0.00032876,2]
[322097740,1712765236586,-2016.046765,0.00032876,2]
[322097741,1712765236606,-156.93052266,0.00032876,5]
[322097742,1712765236626,-209.645799,0.00032876,2]
[322097743,1712765236647,-500.0,0.00032876,5]
[322097744,1712765236672,-8722.95,0.00032876,5]
[322097745,1712765236693,-924.26,0.00032876,5]
[322097746,1712765236715,-558.53870528,0.00032876,5]
[322097747,1712765236736,-312.19784353,0.00032876,5]
[322097748,1712765236756,-502.30102706,0.00032876,5]
[322097749,1712765236779,-873.59,0.00032876,5]
[322097750,1712765236799,-3035.39,0.00032876,5]
[322097751,1712765236901,-500.0,0.00032876,5]
[322097752,1712765236925,-500.0,0.00032876,5]
[322097753,1712765236947,-500.0,0.00032876,5]
[322097754,1712765236968,-2334.82,0.00032876,5]
[322097755,1712765236989,-171.83381504,0.00032876,5]
[322097756,1712765237010,-500.0,0.00032876,5]
[322097757,1712765237033,-500.0,0.00032876,5]
[322097758,1712765237055,-895.03,0.00032876,5]
[322097759,1712765237077,-500.0,0.00032876,5]
[322097760,1712765237098,-7358.02,0.00032876,5]
[322097761,1712765237121,-20614.32,0.00032876,5]
[322097762,1712765237143,-154.9690062,0.00032876,5]
[322097763,1712765237164,-1803.96,0.00032876,5]
[322097764,1712765237186,-502.43028548,0.00032876,5]
[322097765,1712765237210,-3286.11,0.00032876,5]
[322097766,1712765237230,-500.0,0.00032876,5]
[322097767,1712765237250,-1399.46379673,0.00032876,5]
[322097768,1712765244089,-166.666666,0.00027397,2]
[322097769,1712765244114,-166.666666,0.00028038,2]
[322097770,1712765244135,-166.666666,0.00028679,2]
[322097771,1712765244154,-166.666666,0.00029321,2]
[322097772,1712765244172,-166.666666,0.00029962,2]
[322097773,1712765244196,-166.666666,0.00030603,2]
[322097774,1712765244216,-874.32620327,0.00032876,5]
[322097775,1712765244249,-3593.27,0.00032876,5]
[322097776,1712765244273,-500.0,0.00032876,5]
[322097777,1712765244294,-4002.86,0.00032876,5]
[322097778,1712765244315,-1362.24,0.00032876,5]
[322097779,1712765244338,-1097.88,0.00032876,5]
[322097780,1712765244360,-562.38731302,0.00032876,5]
[322097781,1712765244381,-500.0,0.00032876,5]
[322097782,1712765244402,-2080.69,0.00032876,5]
[322097783,1712765244424,-500.0,0.00032876,5]
[322097784,1712765244452,-500.0,0.00032876,5]
[322097785,1712765244473,-516.23999271,0.00032876,5]
[322097786,1712765244494,-3125.12,0.00032876,5]
[322097787,1712765244515,-743.97,0.00032876,5]
[322097788,1712765244535,-500.0,0.00032876,5]
[322097789,1712765244556,-500.0,0.00032876,5]
[322097790,1712765244577,-6951.55,0.00032876,5]
[322097791,1712765244598,-1171.67,0.00032876,5]
[322097792,1712765244617,-500.0,0.00032876,5]
[322097793,1712765244637,-1715.11,0.00032876,5]
[322097794,1712765244657,-501.24044802,0.00032876,5]
[322097795,1712765244796,-500.0,0.00032876,5]
[322097796,1712765244817,-2336.93,0.00032876,5]
[322097797,1712765244840,-658.43,0.00032876,5]
[322097798,1712765244859,-500.0,0.00032876,5]
[322097799,1712765244880,-1574.07,0.00032876,5]
[322097800,1712765244902,-151.0,0.00032876,2]
[322097801,1712765244923,-151.0,0.00032876,2]
[322097802,1712765244944,-151.0,0.00032876,2]
[322097803,1712765244965,-151.0,0.00032876,2]
[322097804,1712765244986,-516.0,0.00032876,5]
[322097805,1712765245009,-151.0,0.00032876,2]
[322097806,1712765245030,-151.0,0.00032876,2]
[322097807,1712765245051,-151.0,0.00032876,2]
[322097808,1712765245071,-528.92,0.00032876,5]
[322097809,1712765245094,-1857.76,0.00032876,5]
[322097810,1712765245116,-500.79502647,0.00032876,2]
[322097811,1712765245141,-500.0,0.00032876,5]
[322097812,1712765245163,-1531.87,0.00032876,5]
[322097813,1712765245185,-500.0,0.00032876,5]
[322097814,1712765245205,-1012.06,0.00032876,5]
[322097815,1712765245226,-500.0,0.00032876,5]
[322097816,1712765245245,-400.0,0.00032877,2]
[322097817,1712765245265,-10000.0,0.000329,2]
[322097818,1712765245287,-1756.37902956,0.000329,2]
[322097819,1712765245307,-625.56451761,0.00032945,2]
[322097820,1712765245327,-54733.66174885,0.00033,2]
[322097821,1712765247154,-14433.33825115,0.00033,2]
[322097822,1712765247184,-164.0,0.00033,2]
[322097823,1712765247206,-453.3273481,0.00033001,2]
[322097824,1712765247228,-154.0279981,0.00033031,2]
[322097825,1712765247253,-153.0,0.00033031,2]
[322097826,1712765247272,-153.0,0.00033031,2]
[322097827,1712765247296,-153.0,0.00033031,2]
[322097828,1712765247316,-153.0,0.00033031,2]
[322097829,1712765247335,-153.0,0.00033031,2]
[322097830,1712765247359,-153.0,0.00033031,2]
[322097831,1712765247381,-153.0,0.00033031,2]
[322097832,1712765247402,-153.0,0.00033031,2]
[322097833,1712765247423,-153.0,0.00033031,2]
[322097834,1712765247449,-153.0,0.00033031,2]
[322097835,1712765247473,-153.0,0.00033031,2]
[322097836,1712765247494,-153.0,0.00033031,2]
[322097837,1712765247515,-153.0,0.00033031,2]
[322097838,1712765247537,-153.0,0.00033031,2]
[322097839,1712765247558,-153.0,0.00033031,2]
[322097840,1712765247580,-153.0,0.00033031,2]
[322097841,1712765247604,-150.87929656,0.00033048,2]
[322097842,1712765247624,-250.29064748,0.00033048,2]
[322097843,1712765247643,-7837.41,0.00033149,2]
[322097844,1712765247664,-7837.41,0.00033149,2]
[322097845,1712765247686,-7837.41,0.00033149,2]
[322097846,1712765247705,-7837.41,0.00033149,2]
[322097847,1712765247729,-7837.41,0.00033149,2]
[322097848,1712765247749,-500.0,0.0003315,5]
[322097849,1712765247769,-500.0,0.0003315,5]
[322097850,1712765247788,-1318.54,0.0003315,5]
[322097851,1712765247810,-500.0,0.0003315,5]
[322097852,1712765247832,-500.0,0.0003315,5]
[322097853,1712765247852,-500.0,0.0003315,5]
[322097854,1712765247873,-500.0,0.0003315,5]
[322097855,1712765247893,-500.0,0.0003315,5]
[322097856,1712765247915,-500.0,0.0003315,5]
[322097857,1712765247938,-500.0,0.0003315,5]
[322097858,1712765247963,-500.0,0.0003315,5]
[322097859,1712765247985,-500.0,0.0003315,5]
[322097860,1712765248005,-500.0,0.0003315,5]
[322097861,1712765248025,-500.0,0.0003315,5]
[322097862,1712765248047,-500.0,0.0003315,5]
[322097863,1712765248068,-500.0,0.0003315,5]
[322097864,1712765248089,-638.5,0.0003315,5]
[322097865,1712765248111,-500.0,0.0003315,5]
[322097866,1712765248134,-500.0,0.0003315,5]
[322097867,1712765248158,-500.0,0.0003315,5]
[322097868,1712765248179,-500.0,0.0003315,5]
[322097869,1712765248201,-500.0,0.0003315,5]
[322097870,1712765248222,-500.0,0.0003315,5]
[322097871,1712765248244,-500.0,0.0003315,5]
[322097872,1712765248265,-500.0,0.0003315,5]
[322097873,1712765248287,-2188.8,0.0003315,5]
[322097874,1712765248308,-552.1,0.0003315,5]
[322097875,1712765248329,-500.0,0.0003315,5]
[322097876,1712765248350,-389.30063778,0.0003315,5]
[322097877,1712765248370,-451.25777452,0.0003315,5]
[322097878,1712765248391,-500.0,0.0003315,5]
[322097879,1712765248413,-500.0,0.0003315,5]
[322097880,1712765248437,-500.0,0.0003315,5]
[322097881,1712765248458,-502.35,0.0003315,5]
[322097882,1712765248478,-500.0,0.0003315,5]
[322097883,1712765248499,-449.78371036,0.0003315,5]
[322097884,1712765248519,-524.97,0.0003315,5]
[322097885,1712765248633,-505.82782025,0.0003315,5]
[322097886,1712765248654,-500.0,0.0003315,5]
[322097887,1712765248674,-1393.86,0.0003315,5]
[322097888,1712765248696,-500.0,0.0003315,5]
[322097889,1712765248718,-500.0,0.0003315,5]
[322097890,1712765248738,-500.0,0.0003315,5]
[322097891,1712765248760,-501.09525977,0.0003315,14]
[322097892,1712765248780,-500.0,0.0003315,5]
[322097893,1712765248801,-500.0,0.0003315,5]
[322097894,1712765248823,-618.62,0.0003315,5]
[322097895,1712765248844,-500.0,0.0003315,5]
[322097896,1712765248864,-500.0,0.0003315,5]
[322097897,1712765248886,-537.91,0.0003315,5]
[322097898,1712765248907,-500.0,0.0003315,5]
[322097899,1712765248929,-500.0,0.0003315,5]
[322097900,1712765248950,-534.91,0.0003315,5]
[322097901,1712765248970,-500.0,0.0003315,5]
[322097902,1712765248991,-21360.54,0.0003315,5]
[322097903,1712765249011,-500.0,0.0003315,5]
[322097904,1712765249031,-500.0,0.0003315,5]
[322097905,1712765249052,-500.0,0.0003315,5]
[322097906,1712765249072,-500.0,0.0003315,5]
[322097907,1712765249092,-4658.3,0.0003315,5]
[322097908,1712765249111,-577.81,0.0003315,5]
[322097909,1712765249135,-500.0,0.0003315,5]
[322097910,1712765249156,-500.0,0.0003315,5]
[322097911,1712765249176,-500.0,0.0003315,5]
[322097912,1712765249199,-500.0,0.0003315,5]
[322097913,1712765249219,-500.0,0.0003315,5]
[322097914,1712765249239,-500.0,0.0003315,5]
[322097915,1712765249260,-500.0,0.0003315,5]
[322097916,1712765249280,-500.0,0.0003315,5]
[322097917,1712765249301,-500.0,0.0003315,5]
[322097918,1712765249321,-748.68,0.0003315,5]
[322097919,1712765249342,-663.36,0.0003315,5]
[322097920,1712765249362,-967.8,0.0003315,5]
[322097921,1712765249383,-575.53,0.0003315,5]
[322097922,1712765249411,-4116.47,0.0003315,5]
[322097923,1712765249434,-1147.67,0.0003315,5]
[322097924,1712765249454,-500.0,0.0003315,5]
[322097925,1712765249477,-8722.95,0.0003315,5]
[322097926,1712765249500,-924.26,0.0003315,5]
[322097927,1712765249523,-873.59,0.0003315,5]
[322097928,1712765249545,-3035.39,0.0003315,5]
[322097929,1712765249568,-500.0,0.0003315,5]
[322097930,1712765249588,-500.0,0.0003315,5]
[322097931,1712765249610,-500.0,0.0003315,5]
[322097932,1712765249632,-2334.82,0.0003315,5]
[322097933,1712765249654,-500.0,0.0003315,5]
[322097934,1712765249676,-895.03,0.0003315,5]
[322097935,1712765249698,-500.0,0.0003315,5]
[322097936,1712765249722,-7358.02,0.0003315,5]
[322097937,1712765249747,-20614.32,0.0003315,5]
[322097938,1712765249769,-1803.96,0.0003315,5]
[322097939,1712765249791,-3286.11,0.0003315,5]
[322097940,1712765249812,-500.0,0.0003315,5]
[322097941,1712765249833,-2273.79,0.0003315,5]
[322097942,1712765249855,-3593.27,0.0003315,5]
[322097943,1712765249876,-500.0,0.0003315,5]
[322097944,1712765249898,-4002.86,0.0003315,5]
[322097945,1712765249919,-1362.24,0.0003315,5]
[322097946,1712765249941,-1097.88,0.0003315,5]
[322097947,1712765249962,-500.0,0.0003315,5]
[322097948,1712765249982,-2080.69,0.0003315,5]
[322097949,1712765250003,-500.0,0.0003315,5]
[322097950,1712765250023,-500.0,0.0003315,5]
[322097951,1712765250044,-3125.12,0.0003315,5]
[322097952,1712765250064,-743.97,0.0003315,5]
[322097953,1712765250085,-500.0,0.0003315,5]
[322097954,1712765250107,-6951.55,0.0003315,5]
[322097955,1712765250130,-1171.67,0.0003315,5]
[322097956,1712765250150,-500.0,0.0003315,5]
[322097957,1712765250172,-1715.11,0.0003315,5]
[322097958,1712765250198,-500.0,0.0003315,5]
[322097959,1712765250221,-2336.93,0.0003315,5]
[322097960,1712765250241,-658.43,0.0003315,5]
[322097961,1712765250263,-630.97746169,0.0003315,5]
[322097962,1712765250284,-1574.07,0.0003315,5]
[322097963,1712765250304,-528.92,0.0003315,5]
[322097964,1712765250326,-1857.76,0.0003315,5]
[322097965,1712765250347,-500.0,0.0003315,5]
[322097966,1712765250367,-1531.87,0.0003315,5]
[322097967,1712765250387,-500.0,0.0003315,5]
[322097968,1712765250409,-1012.06,0.0003315,5]
[322097969,1712765250431,-500.0,0.0003315,5]
[322097970,1712765250451,-164.0,0.00033151,2]
[322097971,1712765250471,-150.0,0.00033164,2]
[322097972,1712765250492,-233.686413,0.00033165,2]
[322097973,1712765250511,-161.377449,0.00033165,2]
[322097974,1712765250532,-357.135361,0.00033165,2]
[322097975,1712765250552,-350.376558,0.00033165,2]
[322097976,1712765250573,-1756.37902952,0.00033237,2]
[322097977,1712765250671,-1000.0,0.000334,2]
[322097978,1712765250695,-1000.0,0.000334,2]
[322097979,1712765250717,-1000.0,0.000334,2]
[322097980,1712765250737,-1000.0,0.000334,2]
[322097981,1712765250757,-5002.86962,0.000334,2]
[322097982,1712765250778,-500.0,0.00033424,5]
[322097983,1712765250799,-500.0,0.00033424,5]
[322097984,1712765250820,-1318.54,0.00033424,5]
[322097985,1712765250841,-500.0,0.00033424,5]
[322097986,1712765250868,-500.0,0.00033424,5]
[322097987,1712765250889,-500.0,0.00033424,5]
[322097988,1712765250911,-500.0,0.00033424,5]
[322097989,1712765250934,-500.0,0.00033424,5]
[322097990,1712765250954,-500.0,0.00033424,5]
[322097991,1712765250975,-500.0,0.00033424,5]
[322097992,1712765250996,-500.0,0.00033424,5]
[322097993,1712765251017,-500.0,0.00033424,5]
[322097994,1712765251037,-500.0,0.00033424,5]
[322097995,1712765251059,-504.22308447,0.00033424,5]
[322097996,1712765251079,-500.0,0.00033424,5]
[322097997,1712765251100,-500.0,0.00033424,5]
[322097998,1712765251123,-638.5,0.00033424,5]
[322097999,1712765251144,-500.0,0.00033424,5]
[322098000,1712765251166,-500.0,0.00033424,5]
[322098001,1712765251189,-500.0,0.00033424,5]
[322098002,1712765251211,-499.41723378,0.00033424,5]
[322098003,1712765251231,-500.0,0.00033424,5]
[322098004,1712765251252,-500.0,0.00033424,5]